Cogmind - Beta 14 @@@ ROGUE MODE // 2024.12.30 @ 03:36:32 Player: iromakkem Result: Destroyed by D-53 Grenadier with Mini Grenade Launcher Performance ------------- Evolutions (0) 0 Regions Visited (2) 400 Robots Destroyed (18) 90 Value Destroyed (387) 387 Prototype IDs (0) 0 Alien Tech Used (0) 0 Bonus (0) 0 TOTAL SCORE: 877 Bonus ------- None Cogmind --------- Core Integrity 0/250 Matter 290/300 Energy 250/250 System Corruption 5% Temperature Cool (0) Movement Walking (190) Ox1 Location -10/Mines Parts ------- > --- POWER (1) -------- Ion Engine > --- PROPULSION (2) --- Aluminum Leg Aluminum Leg > --- UTILITY (2) ------ Medium Storage Unit Light Armor Plating > --- WEAPON (2) ------- Light EM Pulse Cannon Shotgun > --- INVENTORY (10) --- Ion Engine Aluminum Leg Seismic Detector Light Armor Plating Light Armor Plating Hacking Suite Medium Laser Light EM Pulse Cannon Shotgun Peak State ------------ > --- POWER ------------ Light Ion Engine > --- PROPULSION ------- Aluminum Leg Aluminum Leg > --- UTILITY ---------- Medium Storage Unit Improved Terrain Scanner > --- WEAPON ----------- EM Pulse Gun Small Laser > --- INVENTORY -------- Light Ion Engine Light Treads Light Treads Small Storage Unit Seismic Detector Hacking Suite Medium Laser Small Laser [Rating: 10] Favorites ----------- Power Ion Engine Engine Ion Engine Propulsion Aluminum Leg Leg Aluminum Leg Utility Medium Storage Unit Device Improved Terrain Scanner Storage Medium Storage Unit Protection Light Armor Plating Weapon Small Laser Energy Gun Small Laser Energy Cannon Light EM Pulse Cannon Ballistic Gun Shotgun Special Melee Weapon Datajack Build | -11 -10 -10 ------- Run | Yrd Mat Min Slots Evolved . | . . . Power . | . . . Propulsion . | . . . Utility . | . . . Weapon . | . . . Parts Attached 24 | 9 13 2 Power 3 | 1 2 . Engine 3 | 1 2 . Core . | . . . Reactor . | . . . Propulsion 5 | 2 2 1 Treads . | . . . Leg 5 | 2 2 1 Wheel . | . . . Hover . | . . . Flight . | . . . Utility 8 | 3 4 1 Device 2 | 2 . . Storage 4 | 1 3 . Processor . | . . . Hackware . | . . . Protection 2 | . 1 1 Artifact . | . . . Weapon 8 | 3 5 . Energy Gun 5 | 3 2 . Energy Cannon 1 | . 1 . Ballistic Gun 1 | . 1 . Ballistic Cannon . | . . . Launcher . | . . . Special Weapon . | . . . Impact Weapon . | . . . Slashing Weapon . | . . . Piercing Weapon . | . . . Special Melee Weapon 1 | . 1 . Unidentified Prototypes . | . . . Corrupted Parts 1 | . . 1 System Corruption 5 | . . 5 Parts Lost 6 | . 5 1 Power 1 | . 1 . Propulsion 1 | . 1 . Utility 2 | . 1 1 Weapon 2 | . 2 . Highest Loss Streak 5 | . 5 1 To Critical Strikes . | . . . Average Slot Usage (%) 99 | . 99 99 Engine 14 | . 14 14 Leg 27 | . 27 28 Device 2 | . 3 . Storage 16 | . 17 14 Protection 9 | . 6 13 Energy Gun 15 | . 23 . Energy Cannon 6 | . 2 14 Ballistic Gun 6 | . 2 14 Peak Build Rating 10 | 9 10 10 Average Rating 8 | 5 8 9 On Entrance 6 | . 9 10 Naked Turns . | . . . Heaviest Build 25 | 9 25 25 Greatest Support 20 | 20 20 20 Greatest Overweight (x) 2 | 1 2 1 Average Overweight (x) . | . . 1 Largest Inventory Capacity 10 | 8 10 10 Average Capacity 9 | 5 9 10 Most Carried 10 | 5 10 10 Average Carried 8 | 3 8 9 Final Capacity 10 | 5 10 10 Final Carried 10 | 5 10 9 Class Distribution -------------------- 100% | Mutant Dominant Class ---------------- Mutant | -10/Materials Mutant | -10/Mines Resources | -11 -10 -10 ----------- Run | Yrd Mat Min Matter Collected 469 | 159 258 52 Remotely . | . . . Salvage Created 600 | 96 405 99 Parts 33 | 8 21 4 Haulers Intercepted 1 | . 1 . Recyclers Shooed 2 | 1 1 . Parts Field Recycled . | . . . Retrieved Matter . | . . . Parts Self-Destructed . | . . . Prevented . | . . . Kills | -11 -10 -10 ------- Run | Yrd Mat Min Combat Hostiles Destroyed 12 | . 10 2 Guns 9 | . 8 1 Cannons 2 | . 1 1 AOE 1 | . 1 . Classes Destroyed 7 | 2 5 . Worker 1 | . 1 . Tunneler 2 | 2 . . Hauler 1 | . 1 . Recycler 1 | 1 . . Operator 1 | . 1 . Swarmer 4 | . 4 . Grunt 8 | . 6 2 Best Kill Streak 6 | 3 6 2 Combat Bots Only 5 | . 5 2 Max Kills in Single Turn 1 | 1 1 1 Gunslinging . | . . . Exploded 1 | . 1 . Melee . | . . . Uniques/NPCs Destroyed . | . . . Combat | -11 -10 -10 -------- Run | Yrd Mat Min Hostile Shots Fired 118 | . 104 14 Missed 25 | . 21 4 Damage Taken 1152 | . 815 337 Core 256 | . 158 98 Absorbed by Shields . | . . . Core Remaining (%) 100 | 100 . . Volleys Fired 52 | 5 42 5 Largest 2 | 2 2 2 Hottest 90 | 80 90 79 Shots Fired 103 | 10 83 10 Gun 94 | 10 79 5 Cannon 9 | . 4 5 Launcher . | . . . Special . | . . . Kinetic 10 | . 5 5 Thermal 71 | 5 66 . Explosive . | . . . Electromagnetic 22 | 5 12 5 Robot Hit Streak 9 | 4 9 9 Robot Miss Streak 4 | 3 4 1 Penetration Max . | . . . Secondary Targets 2 | . 2 . Max Gunslinging Chain 1 | . 1 . Shots Hit Robots 67 | 5 53 9 Core Hits 28 | 3 22 3 Critical Kills . | . . . Critical Parts Destroyed . | . . . Critical Strikes 1 | . 1 . Burn 1 | . 1 . Melee Attacks 3 | . 3 . Impact . | . . . Slashing . | . . . Piercing . | . . . Sneak Attacks . | . . . Combat Hostiles . | . . . Follow-up Attacks . | . . . Damage Inflicted 988 | 76 745 167 Guns 761 | 76 633 52 Cannons 157 | . 45 112 Explosions 62 | . 62 . Melee . | . . . Ramming 8 | . 5 3 Kinetic 94 | . 42 52 Thermal 629 | 46 583 . Explosive . | . . . Electromagnetic 257 | 30 115 112 Impact . | . . . Slashing . | . . . Piercing . | . . . Highest Corruption 5 | . . 5 Average Corruption 5 | . . 5 Corruption Purged . | . . . Corruption Blocked . | . . . Effects 1 | . . 1 Data Loss (minor) 1 | . . 1 Overload Shots . | . . . Overflow Damage . | . . . Projectiles . | . . . Explosions . | . . . Melee . | . . . Knockbacks . | . . . Impact . | . . . Kinetic . | . . . Secondary . | . . . Self-Inflicted Damage 34 | . 34 . Shots 1 | . 1 . Rammed . | . . . Targets Rammed 4 | . 2 2 Kicked 4 | . 2 2 Crushed . | . . . Highest Temperature 386 | 36 386 153 Average Temperature 100 | 19 111 69 Received Heat Transfer 291 | . 240 51 Effects 2 | . 2 . Energy Bleed 2 | . 2 . Siege Activations . | . . . Robots Corrupted . | . . . Combat Hostiles . | . . . Parts Fried . | . . . Impact Corruptions . | . . . Robots Melted . | . . . Combat Hostiles . | . . . Parts Melted 3 | . 3 . Heat Transferred 1591 | 100 1491 . Parts Sabotaged . | . . . Parts Stolen . | . . . Parts Stripped . | . . . Power Chain Reactions 1 | . 1 . Alert | -11 -10 -10 ------- Run | Yrd Mat Min Peak Influence 216 | 15 216 65 Initial 49 | . 9 49 Average 53 | 5 63 40 Maximum Alert Level 1 | . 1 . Low Security (%) 99 | 100 98 100 Level 1 . | . 1 . Level 2 . | . . . Level 3 . | . . . Level 4 . | . . . Level 5 . | . . . High Security . | . . . Max Security . | . . . Squads Dispatched 2 | . 2 . Investigation 2 | . 2 . Extermination . | . . . Reinforcement . | . . . Assault . | . . . Garrison . | . . . Intercept . | . . . Searches Triggered . | . . . Construction Impeded . | . . . Haulers Reinforced . | . . . Active Scanning Responses . | . . . Cargo Convoy Interrupts . | . . . Stealth | -11 -10 -10 --------- Run | Yrd Mat Min Distress Signals 4 | . 4 . Communications Jammed . | . . . Distress Signals . | . . . Times Spotted 31 | . 25 6 Peak Tracking Total 6 | . 6 3 Tactical Retreats 3 | . 2 1 Traps | -11 -10 -10 ------- Run | Yrd Mat Min Traps Triggered 1 | . 1 . Indirectly . | . . . Trap Hack Attempts . | . . . Triggered . | . . . Disarmed . | . . . Reprogrammed . | . . . Reused . | . . . Traps Extracted . | . . . Installed . | . . . Triggered . | . . . Machines | -11 -10 -10 ---------- Run | Yrd Mat Min Machines Disabled 1 | . 1 . Max in Single Turn 1 | . 1 . Machines Repaired . | . . . Machines Dismantled . | . . . Machines Sabotaged . | . . . Overloaded Fab Kills . | . . . Hacking | -11 -10 -10 --------- Run | Yrd Mat Min Machines Accessed 5 | . 5 . Terminals 5 | . 5 . Fabricators . | . . . Repair Stations . | . . . Recycling Units . | . . . Scanalyzers . | . . . Garrison Access . | . . . Total Hacks 17 | . 17 . Successful 10 | . 10 . Failed 7 | . 7 . Catastrophic . | . . . Database Lockouts . | . . . Manual . | . . . Terminals 17 | . 17 . Fabricators . | . . . Repair Stations . | . . . Recycling Units . | . . . Scanalyzers . | . . . Garrison Access . | . . . Terminal Hacks 10 | . 10 . Locate Traps 3 | . 3 . Security Status 1 | . 1 . Patrol Status 2 | . 2 . Transport Status 1 | . 1 . Zone Layout 3 | . 3 . Fabricator Hacks . | . . . Repair Station Hacks . | . . . Recycling Unit Hacks . | . . . Scanalyzer . | . . . Garrison Access Hacks . | . . . Unauthorized Hacks . | . . . Terminals . | . . . Fabricators . | . . . Repair Stations . | . . . Recycling Units . | . . . Scanalyzers . | . . . Garrison Access . | . . . Data Cores Recovered 1 | . 1 . Used . | . . . Hacking Detections 3 | . 3 . Full Trace Events 1 | . 1 . Feedback Events . | . . . Feedback Blocked . | . . . Robot Schematics Acquired . | . . . Robots Built . | . . . Authchips . | . . . Time . | . . . Total Robot Build Rating . | . . . Part Schematics Acquired . | . . . Parts Built . | . . . Authchips . | . . . Time . | . . . Total Part Build Rating . | . . . Parts Repaired . | . . . Time . | . . . Parts Recycled . | . . . Recycled Matter . | . . . Retrieved Matter . | . . . Retrieved Components . | . . . Parts Scanalyzed . | . . . Part Schematics Acquired . | . . . Parts Damaged . | . . . Bothacking | -11 -10 -10 ------------ Run | Yrd Mat Min Used RIF Installer . | . . . Robots Hacked 1 | . 1 . Non-combat . | . . . Combat 1 | . 1 . Robot Hacks Applied 1 | . 1 . parse_system 1 | . 1 . Relay Couplers Released . | . . . Fabnet Peak Effective % . | . . . Robots Rewired . | . . . Allies Hacked . | . . . Hacks Repelled . | . . . Allies | -11 -10 -10 -------- Run | Yrd Mat Min Total Allies . | . . . Largest Group . | . . . Highest-Rated Group . | . . . Highest-Rated Ally . | . . . Total Orders . | . . . Ally Attacks . | . . . Total Damage . | . . . Kills . | . . . Allies Corrupted . | . . . Allies Melted . | . . . Intel | -11 -10 -10 ------- Run | Yrd Mat Min Robot Analysis Total . | . . . Derelict Logs Recovered . | . . . Drone Launches . | . . . Drone Recoveries . | . . . Exploration | -11 -10 -10 ------------- Run | Yrd Mat Min Turns Passed 1674 | 73 1068 533 Spaces Moved 786 | 38 487 261 Core 8 | 8 . . Treads . | . . . Legs 778 | 30 487 261 Wheels . | . . . Hover . | . . . Flight . | . . . Fastest Speed 50 | 50 120 190 Average Speed 168 | 109 161 190 Slowest Speed 260 | 120 260 190 Overloaded Moves . | . . . Propulsion Burnouts . | . . . Robots Hopped . | . . . Cave-ins Triggered . | . . . Exploration Rate (%) 44 | 4 80 48 Regions Visited 2 Branch Regions 1 Pre-discovered Areas . | . . . Known Exits Taken . | . . . Unknown Exits Taken 2 | 1 1 . Scrap Searched . | . . . Spaces Dug . | . . . Terrain Destroyed 2 | . 2 . Melee . | . . . Projectile . | . . . AOE 2 | . 2 . Terrain Rammed . | . . . Walls Destroyed . | . . . Machines Disabled . | . . . Actions | -11 -10 -10 --------- Run | Yrd Mat Min Total 1030 | 56 688 286 Wait 130 | . 115 15 Move 784 | 37 486 261 Hop . | . . . Pick Up 18 | 3 15 . Fast Attach 15 | 9 5 1 Attach 8 | . 7 1 Detach 3 | 2 1 . Swap 1 | . 1 . Drop 12 | . 11 1 Fire 52 | 5 42 5 Melee 3 | . 3 . Ram . | . . . Kick 4 | . 2 2 Crush . | . . . Escape Stasis . | . . . Rewire . | . . . Trap . | . . . Miscellaneous . | . . . Route ------- -11/Scrapyard -10/Materials (discovered 4 exits: [*Mat x2] / [*Min x2]) -10/Mines (discovered 1 exit: [*Mat]) History --------- Turn | Location | Event 11 | -11/Scrapyard | Discovered new exit (range 15) 74 | -11/Scrapyard | Entered Materials 303 | -10/Materials | Build established: Mutant 337 | -10/Materials | Lost 5 parts (1p1n1u2w) 341 | -10/Materials | Discovered new exit (range 12) 448 | -10/Materials | Core integrity fell below 50% 597 | -10/Materials | Discovered new exit (range 16) 741 | -10/Materials | Discovered new exit (range 13) 964 | -10/Materials | Discovered new exit (range 9) 1142 | -10/Materials | Entered Mines 1156 | -10/Mines | Met a Derelict bent on vengeance 1299 | -10/Mines | Assembled infested the area 1304 | -10/Mines | Assisted by a Guerilla fighting off Assembled 1670 | -10/Mines | Core integrity fell below 20% 1671 | -10/Mines | Discovered new exit (range 8) 1675 | -10/Mines | Destroyed by D-53 Grenadier with Mini Grenade Launcher Last Messages --------------- dispatching Demolisher response squad. 01304_ A derelict emerges from the shadows: "You need to get out of here! I've been tracking a group of Assembled to figure out where they're coming from, and they're closing on this area, come on!" 01314_ N0-D01(g): "TASTE MY VENGEANCE!" 01632_ G-34 Mercenary destroyed. 01637_ Critical hit (Burn: +37). 01641_ G-47 Trooper destroyed. 01650_ Dropped Aluminum Leg. 01651_ Acquired Corrupted Aluminum Leg. 01651_ Integrated Corrupted Aluminum Leg (+5). 01652_ Acquired 52 matter. 01659_ System corrupted: Component data lost. 01668_ Lgt. Armor Plating destroyed. 01668_ Laser Drill disabled. 01670_ D-53 Grenadier IFF system glitched. 01671_ EXIT=FOUND 01674_ The unstable cave ceiling collapses. Map ----- +----------------------------------------------------+ | ?# ### ##???????## ##?# | | ?# ##?## ##????????# #??## | | ?# #???### ##?????????# #???# | | ?# #?????## #??######??# ##???? | | ?# #??????# #### ##?# ###### | | ?# #??????# ## #?# | | ?## ##??????## ### | | ??######????????## #### | | ?????????????????## """ ##??? | | ??????????????????## """ ##???? | | ???????????????????### """ ##????? | | ?????????????????????## ## ##?????? | | ?????????????###??????### ### ##??????? | | ?????????????? ?????#### #?## ##???????? | | ?????????????? ????# #??# ##????????? | | ?????????????? ????# ####??# #?????????? | | ?????????????? ????# #????? #?????????? | | ??????????????? ????# #????####?????????? | | ??????????????? ????# #?????????????????? | | ???????????????